fUSD/lending_fUSD_20260427
["ID","MTS","AMOUNT","RATE_DAILY","PERIOD"]
[421190996,1777225878515,-500.0,0.0003863,15]
[421190997,1777225878524,-500.0,0.0003863,15]
[421190998,1777225878535,-500.0,0.0003863,15]
[421190999,1777225878545,-500.0,0.0003863,15]
[421191000,1777225878554,-500.0,0.0003863,15]
[421191001,1777225878564,-500.0,0.0003863,15]
[421191002,1777225878574,-1442.35,0.0003863,15]
[421191003,1777225878583,-500.0,0.0003863,15]
[421191004,1777225878593,-630.59,0.0003863,15]
[421191005,1777225878603,-1048.26,0.0003863,15]
[421191006,1777225878613,-500.0,0.0003863,15]
[421191007,1777225878623,-500.0,0.0003863,15]
[421191008,1777225878633,-500.0,0.0003863,15]
[421191009,1777225878643,-626.08,0.0003863,15]
[421191010,1777225878653,-1716.3,0.0003863,15]
[421191011,1777225878663,-500.0,0.0003863,15]
[421191012,1777225878672,-500.0,0.0003863,15]
[421191013,1777225878682,-3539.51,0.0003863,15]
[421191014,1777225878692,-500.0,0.0003863,2]
[421191015,1777225878702,-500.0,0.0003863,15]
[421191016,1777225878711,-787.69,0.0003863,15]
[421191017,1777225878721,-1238.2,0.0003863,15]
[421191018,1777225878732,-515.70695682,0.0003863,15]
[421191019,1777225878742,-500.0,0.0003863,15]
[421191020,1777225878752,-1086.18,0.0003863,15]
[421191021,1777225878761,-498.4,0.0003863,15]
[421191022,1777225878771,-500.0,0.0003863,15]
[421191023,1777225878781,-699.93,0.0003863,15]
[421191024,1777225878791,-500.0,0.0003863,15]
[421191025,1777225878800,-500.0,0.0003863,15]
[421191026,1777225878810,-500.0,0.0003863,15]
[421191027,1777225878820,-559.73,0.0003863,15]
[421191028,1777225878831,-867.24,0.0003863,15]
[421191029,1777225878841,-870.64,0.0003863,15]
[421191030,1777225878851,-685.35,0.0003863,15]
[421191031,1777225878861,-500.0,0.0003863,15]
[421191032,1777225878871,-1036.89,0.0003863,15]
[421191033,1777225878881,-2070.79,0.0003863,15]
[421191034,1777225878890,-500.0,0.0003863,15]
[421191035,1777225878900,-500.0,0.0003863,15]
[421191036,1777225878910,-500.0,0.0003863,15]
[421191037,1777225878919,-619.89574842,0.0003863,15]
[421191038,1777225878928,-500.0,0.0003863,15]
[421191039,1777225878937,-3334.91,0.0003863,15]
[421191040,1777225878946,-500.0,0.0003863,15]
[421191041,1777225878955,-5476.34,0.0003863,15]
[421191042,1777225878965,-500.0,0.0003863,15]
[421191043,1777225878975,-1322.23,0.0003863,15]
[421191044,1777225878985,-1216.19,0.0003863,14]
[421191045,1777225878994,-500.0,0.0003863,15]
[421191046,1777225879004,-500.0,0.0003863,15]
[421191047,1777225879014,-500.0,0.0003863,15]
[421191048,1777225879023,-500.0,0.0003863,15]
[421191049,1777225879033,-564.70541627,0.0003863,15]
[421191050,1777225879042,-500.0,0.0003863,15]
[421191051,1777225879052,-1389.25,0.0003863,15]
[421191052,1777225879061,-1720.57,0.0003863,15]
[421191053,1777225879070,-500.0,0.0003863,15]
[421191054,1777225879080,-500.0,0.0003863,15]
[421191055,1777225879089,-500.0,0.0003863,15]
[421191056,1777225879098,-749.96,0.0003863,15]
[421191057,1777225879107,-500.0,0.0003863,15]
[421191058,1777225879116,-1262.11,0.0003863,15]
[421191059,1777225879126,-948.11,0.0003863,15]
[421191060,1777225879135,-500.0,0.0003863,15]
[421191061,1777225879145,-2892.54,0.0003863,15]
[421191062,1777225879154,-236.42420595,0.0003863,15]
[421191063,1777225879163,-500.0,0.0003863,15]
[421191064,1777225879172,-538.16,0.0003863,15]
[421191065,1777225879182,-500.0,0.0003863,15]
[421191066,1777225879193,-527.92794448,0.0003863,15]
[421191067,1777225879203,-500.0,0.0003863,15]
[421191068,1777225879213,-743.03,0.0003863,15]
[421191069,1777225879224,-500.0,0.0003863,15]
[421191070,1777225879234,-500.0,0.0003863,15]
[421191071,1777225879243,-500.0,0.0003863,15]
[421191072,1777225879253,-1861.14,0.0003863,15]
[421191073,1777225879262,-500.0,0.0003863,15]
[421191074,1777225879272,-500.0,0.0003863,15]
[421191075,1777225879282,-500.0,0.0003863,15]
[421191076,1777225879293,-500.0,0.0003863,15]
[421191077,1777225879303,-853.77,0.0003863,15]
[421191078,1777225879313,-1169.93,0.0003863,15]
[421191079,1777225879326,-500.0,0.0003863,15]
[421191080,1777225879336,-944.13,0.0003863,15]
[421191081,1777225879347,-500.0,0.0003863,15]
[421191082,1777225879357,-1245.88,0.0003863,15]
[421191083,1777225879366,-500.0,0.0003863,15]
[421191084,1777225879376,-500.0,0.0003863,15]
[421191085,1777225879386,-500.0,0.0003863,15]
[421191086,1777225879395,-500.0,0.0003863,15]
[421191087,1777225879405,-500.0,0.0003863,15]
[421191088,1777225879415,-1133.82,0.0003863,15]
[421191089,1777225879424,-500.0,0.0003863,15]
[421191090,1777225879434,-4842.51,0.0003863,15]
[421191091,1777225879443,-500.0,0.0003863,15]
[421191092,1777225879453,-518.8447478,0.0003863,15]
[421191093,1777225879462,-500.0,0.0003863,15]
[421191094,1777225879472,-500.0,0.0003863,15]
[421191095,1777225879482,-500.0,0.0003863,15]
[421191096,1777225879491,-500.0,0.0003863,15]
[421191097,1777225879501,-500.0,0.0003863,15]
[421191098,1777225879511,-1471.49,0.0003863,15]
[421191099,1777225879520,-1049.32,0.0003863,15]
[421191100,1777225879531,-722.28,0.0003863,15]
[421191101,1777225879541,-500.0,0.0003863,15]
[421191102,1777225879551,-790.34,0.0003863,15]
[421191103,1777225879561,-1919.59,0.0003863,15]
[421191104,1777225879571,-500.0,0.0003863,15]
[421191105,1777225879580,-500.0,0.0003863,15]
[421191106,1777225879591,-1831.1,0.0003863,15]
[421191107,1777225879600,-500.0,0.0003863,15]
[421191108,1777225879610,-484.79817086,0.0003863,15]
[421191109,1777225879619,-500.0,0.0003863,15]
[421191110,1777225879629,-831.8,0.0003863,15]
[421191111,1777225879639,-326.45737865,0.0003863,15]
[421191112,1777225879649,-372.69814412,0.0003863,15]
[421191113,1777225879659,-180.76509629,0.0003863,15]
[421191114,1777225879669,-500.0,0.0003863,15]
[421191115,1777225879680,-577.56,0.0003863,15]
[421191116,1777225879691,-500.0,0.0003863,15]
[421191117,1777225879701,-500.0,0.0003863,15]
[421191118,1777225879711,-500.0,0.0003863,15]
[421191119,1777225879720,-1054.82,0.0003863,15]
[421191120,1777225879730,-1794.7,0.0003863,15]
[421191121,1777225879740,-500.0,0.0003863,15]
[421191122,1777225879750,-500.0,0.0003863,15]
[421191123,1777225879760,-456.95628587,0.0003863,15]
[421191124,1777225879770,-500.0,0.0003863,15]
[421191125,1777225879779,-500.0,0.0003863,15]
[421191126,1777225879789,-500.0,0.0003863,15]
[421191127,1777225879798,-500.0,0.0003863,15]
[421191128,1777225879808,-500.0,0.0003863,15]
[421191129,1777225879819,-500.0,0.0003863,15]
[421191130,1777225879830,-1628.58,0.0003863,15]
[421191131,1777225879840,-500.0,0.0003863,15]
[421191132,1777225879851,-500.0,0.0003863,15]
[421191133,1777225879860,-500.0,0.0003863,15]
[421191134,1777225879870,-500.0,0.0003863,15]
[421191135,1777225879880,-483.47271434,0.0003863,15]
[421191136,1777225879891,-500.0,0.0003863,15]
[421191137,1777225879901,-793.17,0.0003863,15]
[421191138,1777225879911,-313.97207256,0.0003863,15]
[421191139,1777225879922,-500.0,0.0003863,15]
[421191140,1777225879932,-500.0,0.0003863,15]
[421191141,1777225879943,-2337.63,0.0003863,15]
[421191142,1777225879953,-500.0,0.0003863,15]
[421191143,1777225879962,-500.0,0.0003863,15]
[421191144,1777225879972,-1346.97,0.0003863,15]
[421191145,1777225879981,-500.0,0.0003863,15]
[421191146,1777225879991,-1331.18,0.0003863,15]
[421191147,1777225880002,-500.0,0.0003863,15]
[421191148,1777225880012,-171.37628363,0.0003863,15]
[421191149,1777225880023,-500.0,0.0003863,15]
[421191150,1777225880034,-500.0,0.0003863,15]
[421191151,1777225880043,-2102.69,0.0003863,15]
[421191152,1777225880053,-183.19448501,0.0003863,15]
[421191153,1777225880063,-579.9,0.0003863,15]
[421191154,1777225880072,-783.32,0.0003863,15]
[421191155,1777225880083,-4166.68,0.0003863,2]
[421191156,1777225880093,-566.87,0.0003863,15]
[421191157,1777225880102,-345.55587399,0.0003863,15]
[421191158,1777225880112,-500.0,0.0003863,15]
[421191159,1777225880122,-500.0,0.0003863,15]
[421191160,1777225880131,-500.0,0.0003863,15]
[421191161,1777225880141,-500.0,0.0003863,15]
[421191162,1777225880151,-1884.87,0.0003863,15]
[421191163,1777225880160,-500.0,0.0003863,15]
[421191164,1777225880170,-620.97062821,0.0003863,15]
[421191165,1777225880180,-162.72401686,0.0003863,15]
[421191166,1777225880189,-500.0,0.0003863,15]
[421191167,1777225880199,-500.0,0.0003863,15]
[421191168,1777225880209,-1199.52,0.0003863,15]
[421191169,1777225880218,-808.9,0.0003863,15]
[421191170,1777225880228,-247.86225672,0.0003863,15]
[421191171,1777225880239,-500.0,0.0003863,15]
[421191172,1777225880250,-500.0,0.0003863,15]
[421191173,1777225880261,-592.49077817,0.0003863,15]
[421191174,1777225880271,-359.45408242,0.0003863,15]
[421191175,1777225880281,-500.0,0.0003863,15]
[421191176,1777225880292,-500.0,0.0003863,15]
[421191177,1777225880302,-12545.47,0.0003863,15]
[421191178,1777225880313,-330.80979528,0.0003863,15]
[421191179,1777225880324,-500.0,0.0003863,15]
[421191180,1777225880336,-500.0,0.0003863,15]
[421191181,1777225880346,-2092.53,0.0003863,15]
[421191182,1777225880356,-1346.26,0.0003863,15]
[421191183,1777225880366,-500.0,0.0003863,15]
[421191184,1777225880375,-500.0,0.0003863,15]
[421191185,1777225880385,-500.0,0.0003863,15]
[421191186,1777225880394,-500.0,0.0003863,15]
[421191187,1777225880404,-500.0,0.0003863,15]
[421191188,1777225880413,-988.63,0.0003863,15]
[421191189,1777225880424,-500.0,0.0003863,15]
[421191190,1777225880435,-791.54,0.0003863,15]
[421191191,1777225880784,-1460.02,0.0003863,15]
[421191192,1777225880816,-500.0,0.0003863,15]
[421191193,1777225880825,-500.0,0.0003863,15]
[421191194,1777225880836,-2396.63,0.0003863,15]
[421191195,1777225880846,-16627.45,0.0003863,11]
[421191196,1777225880856,-1750.67,0.0003863,15]
[421191197,1777225880866,-704.82,0.0003863,15]
[421191198,1777225880875,-18480.37,0.0003863,15]
[421191199,1777225880885,-623.17722578,0.0003863,15]
[421191200,1777225880894,-838.62,0.0003863,15]
[421191201,1777225880903,-643.71,0.0003863,15]
[421191202,1777225880913,-4214.41,0.0003863,15]
[421191203,1777225880923,-402.33934635,0.0003863,15]
[421191204,1777225880932,-1043.57,0.0003863,15]
[421191205,1777225880942,-500.0,0.0003863,15]
[421191206,1777225880951,-1128.82,0.0003863,15]
[421191207,1777225880961,-500.0,0.0003863,15]
[421191208,1777225880970,-500.0,0.0003863,15]
[421191209,1777225880980,-500.0,0.0003863,15]
[421191210,1777225880989,-826.33,0.0003863,15]
[421191211,1777225880999,-500.0,0.0003863,15]
[421191212,1777225881008,-1350.11,0.0003863,15]
[421191213,1777225881018,-679.78320109,0.0003863,15]
[421191214,1777225882787,-500.0,0.00017999,2]
[421191215,1777225882798,-235.0,0.00018531,2]
[421191216,1777225882807,-3312.0,0.00019344,2]
[421191217,1777225883289,-725.3672,0.00019344,2]
[421191218,1777225883301,-1538.77951083,0.00019344,2]
[421191219,1777225883312,-7146.63224149,0.00019344,2]
[421191220,1777225883326,-2843.36225276,0.00019344,2]
[421191221,1777225883359,-7134.00372255,0.00019344,2]
[421191222,1777225883369,-500.0,0.00019382,2]
[421191223,1777225883379,-151.0,0.00019383,2]
[421191224,1777225883389,-151.0,0.00019591,2]
[421191225,1777225883399,-151.0,0.0002,2]
[421191226,1777225883409,-2826.85627745,0.00023001,2]
[421191241,1777226825813,500.0,0.0003287,120]
[421191281,1777227033446,-300.0,0.00010485,2]
[421191282,1777227033457,-1200.0,0.00010485,2]
[421191283,1777227033467,-5217.876,0.00010486,2]
[421191284,1777227033476,-386.094,0.00010486,2]
[421191285,1777227033485,-190.35314528,0.000106,2]
[421191286,1777227033495,-150.0,0.00010698,2]
[421191287,1777227033506,-270.72942331,0.000107,2]
[421191288,1777227033516,-104474.55641337,0.000107,2]
[421191289,1777227033528,-30073.80514739,0.000107,2]
[421191290,1777227033539,-3914.4663398,0.000107,2]
[421191291,1777227033551,-17890.03558092,0.000107,2]
[421191298,1777227037628,-316.08719843,0.000107,2]
[421191310,1777227040018,-1971.275,0.000107,2]
[421191342,1777227045572,-294.64999998,0.000107,2]
[421191343,1777227045679,-1041.20961511,0.000107,2]
[421191344,1777227046047,-19743.82672229,0.000107,2]
[421191350,1777227133527,153.0,0.00032877,120]
[421191358,1777228231842,-207.40137916,0.000105,2]
[421191359,1777228231854,-2624.26886413,0.000106,2]
[421191360,1777228231863,-153.83540176,0.000106,2]
[421191361,1777228231873,-271.0,0.000106,2]
[421191362,1777228231882,-344.17,0.00010647,2]
[421191363,1777228231892,-3782.131,0.00010685,2]
[421191364,1777228231901,-1200.0,0.00010698,2]
[421191365,1777228231910,-200.0,0.00010698,2]
[421191366,1777228231920,-150.0,0.00010698,2]
[421191367,1777228231929,-1000.0,0.00010699,2]
[421191368,1777228231939,-500.0,0.00010699,2]
[421191369,1777228231950,-500.0,0.00010699,2]
[421191370,1777228231960,-500.0,0.00010699,2]
[421191371,1777228231970,-500.0,0.00010699,2]
[421191372,1777228231981,-500.0,0.00010699,2]
[421191373,1777228231990,-500.0,0.00010699,2]
[421191374,1777228232000,-500.0,0.00010699,2]
[421191375,1777228232009,-500.0,0.00010699,2]
[421191376,1777228232019,-500.0,0.00010699,2]
[421191378,1777228232028,-500.0,0.00010699,2]
[421191380,1777228232038,-500.0,0.00010699,2]
[421191382,1777228232047,-500.0,0.00010699,2]
[421191384,1777228232056,-500.0,0.00010699,2]
[421191385,1777228232065,-500.0,0.00010699,2]
[421191387,1777228232075,-500.0,0.00010699,2]
[421191389,1777228232084,-500.0,0.00010699,2]
[421191391,1777228232094,-500.0,0.00010699,2]
[421191393,1777228232103,-500.0,0.00010699,2]
[421191395,1777228232113,-500.0,0.00010699,2]
[421191397,1777228232123,-500.0,0.00010699,2]
[421191399,1777228232132,-500.0,0.00010699,2]
[421191401,1777228232142,-500.0,0.00010699,2]
[421191403,1777228232151,-500.0,0.00010699,2]
[421191405,1777228232161,-500.0,0.00010699,2]
[421191407,1777228232170,-500.0,0.00010699,2]
[421191409,1777228232179,-500.0,0.00010699,2]
[421191411,1777228232188,-500.0,0.00010699,2]
[421191413,1777228232197,-500.0,0.00010699,2]
[421191414,1777228232207,-500.0,0.00010699,2]
[421191416,1777228232216,-500.0,0.00010699,2]
[421191418,1777228232226,-500.0,0.00010699,2]
[421191420,1777228232235,-500.0,0.00010699,2]
[421191422,1777228232245,-500.0,0.00010699,2]
[421191424,1777228232254,-500.0,0.00010699,2]
[421191426,1777228232263,-500.0,0.00010699,2]
[421191428,1777228232273,-500.0,0.00010699,2]
[421191430,1777228232282,-500.0,0.00010699,2]
[421191432,1777228232292,-500.0,0.00010699,2]
[421191434,1777228232302,-500.0,0.00010699,2]
[421191436,1777228232311,-500.0,0.00010699,2]
[421191438,1777228232320,-500.0,0.00010699,2]
[421191440,1777228232330,-500.0,0.00010699,2]
[421191441,1777228232340,-323.45494141,0.00010699,2]
[421191442,1777228232349,-500.0,0.00010699,2]
[421191443,1777228232359,-500.0,0.00010699,2]
[421191444,1777228232368,-500.0,0.00010699,2]
[421191445,1777228232377,-500.0,0.00010699,2]
[421191446,1777228232387,-500.0,0.00010699,2]
[421191447,1777228232397,-500.0,0.00010699,2]
[421191448,1777228232406,-500.0,0.00010699,2]
[421191449,1777228232417,-279.00279452,0.00010699,2]
[421191450,1777228232426,-500.0,0.00010699,2]
[421191451,1777228232437,-500.0,0.00010699,2]
[421191452,1777228232446,-500.0,0.00010699,2]
[421191453,1777228232455,-500.0,0.00010699,2]
[421191454,1777228232465,-500.0,0.00010699,2]
[421191455,1777228232474,-500.0,0.00010699,2]
[421191456,1777228232483,-500.0,0.00010699,2]
[421191457,1777228232493,-500.0,0.00010699,2]
[421191458,1777228232502,-500.0,0.00010699,2]
[421191459,1777228232513,-500.0,0.00010699,2]
[421191460,1777228232522,-500.0,0.00010699,2]
[421191461,1777228232532,-500.0,0.00010699,2]
[421191462,1777228232541,-500.0,0.00010699,2]
[421191463,1777228232550,-500.0,0.00010699,2]
[421191464,1777228232560,-400.0,0.00010699,2]
[421191465,1777228232569,-500.0,0.00010699,2]
[421191466,1777228232579,-500.0,0.00010699,2]
[421191467,1777228232588,-500.0,0.00010699,2]
[421191468,1777228232597,-500.0,0.00010699,2]
[421191469,1777228232607,-500.0,0.00010699,2]
[421191470,1777228232618,-500.0,0.00010699,2]
[421191471,1777228232627,-500.0,0.00010699,2]
[421191472,1777228232636,-500.0,0.00010699,2]
[421191473,1777228232646,-500.0,0.00010699,2]
[421191474,1777228232655,-274.95947827,0.00010699,2]
[421191475,1777228232665,-500.0,0.00010699,2]
[421191476,1777228232674,-500.0,0.00010699,2]
[421191477,1777228232684,-500.0,0.00010699,2]
[421191478,1777228232693,-500.0,0.00010699,2]
[421191479,1777228232702,-500.0,0.00010699,2]
[421191480,1777228232712,-500.0,0.00010699,2]
[421191481,1777228232722,-500.0,0.00010699,2]
[421191482,1777228232731,-500.0,0.00010699,2]
[421191483,1777228232741,-240.0,0.00010699,2]
[421191484,1777228232750,-500.0,0.00010699,2]
[421191485,1777228232760,-500.0,0.00010699,2]
[421191486,1777228232768,-179.21959099,0.00010699,2]
[421191487,1777228232778,-233354.20541126,0.000107,2]
[421191488,1777228232792,-6034.64114208,0.000107,2]
[421191489,1777228232803,-14633.98817015,0.000107,2]
[421191490,1777228232818,-500.0,0.000107,2]
[421191491,1777228232830,-308.29206342,0.000107,2]
[421191492,1777228232843,-537.33694,0.000107,2]
[421191504,1777228238480,-110048.98912914,0.000107,2]
[421191506,1777228238490,-207.40137915,0.000107,2]
[421191508,1777228238500,-150.0,0.000108,2]
[421191510,1777228238510,-150.0,0.000108,2]
[421191512,1777228238519,-150.0,0.000108,2]
[421191514,1777228238529,-150.0,0.000108,2]
[421191516,1777228238538,-150.0,0.000108,2]
[421191518,1777228238548,-150.0,0.000108,2]
[421191519,1777228238558,-4869.83902839,0.000109,2]
[421191521,1777228238567,-594.0746945,0.00010973,2]
[421191523,1777228238578,-500.18586643,0.00011073,2]
[421191525,1777228238587,-24332.71717802,0.00011099,2]
[421191527,1777228238597,-394.28,0.0001124,2]
[421191529,1777228238607,-362.48,0.0001124,2]
[421191531,1777228238616,-331.71,0.0001124,2]
[421191533,1777228238626,-400.73,0.0001124,2]
[421191535,1777228238636,-150.0,0.000114,2]
[421191537,1777228238646,-150.0,0.00011499,2]
[421191539,1777228238656,-300.0,0.000115,4]
[421191542,1777228238676,-700.0,0.000116,4]
[421191544,1777228238687,-5000.0,0.00011659,2]
[421191546,1777228238697,-250.0,0.00011659,2]
[421191548,1777228238707,-2500.0,0.00011659,2]
[421191550,1777228238717,-2500.0,0.00011659,2]
[421191552,1777228238727,-2500.0,0.00011659,2]
[421191555,1777228238736,-2500.0,0.00011659,2]
[421191557,1777228238746,-250.0,0.00011659,2]
[421191558,1777228238756,-2500.0,0.00011659,2]
[421191560,1777228238765,-500.0,0.00011659,2]
[421191562,1777228238774,-250.0,0.00011659,2]
[421191564,1777228238784,-1000.0,0.000117,4]
[421191566,1777228238794,-152.0,0.00011712,7]
[421191568,1777228238804,-152.0,0.00011726,7]
[421191570,1777228238813,-255.0,0.00011736,2]
[421191572,1777228238823,-1680.0,0.00011768,2]
[421191574,1777228238834,-1400.0,0.000118,4]
[421191576,1777228238844,-209.0,0.000118,2]
[421191578,1777228238854,-152.0,0.00011842,7]
[421191580,1777228238864,-152.0,0.00011854,7]
[421191582,1777228238874,-152.0,0.00011854,7]
[421191584,1777228238885,-577.20212446,0.00011873,2]
[421191585,1777228238894,-210.11794216,0.00011873,2]
[421191587,1777228238904,-163.14974325,0.00011873,2]
[421191589,1777228238914,-225.10619705,0.000119,2]
[421191591,1777228238923,-580.28475182,0.000119,2]
[421191593,1777228238934,-472.72359531,0.000119,2]
[421191595,1777228238943,-264.11749042,0.000119,2]
[421191597,1777228238953,-514.89035849,0.000119,2]
[421191599,1777228238963,-450.65916604,0.000119,2]
[421191601,1777228238973,-214.10672339,0.000119,2]
[421191603,1777228238983,-480.54293829,0.000119,2]
[421191604,1777228238993,-1146.82617621,0.000119,2]
[421191605,1777228239004,-1700.0,0.000119,4]
[421191606,1777228239013,-3490.32340104,0.000119,2]
[421191608,1777228239023,-206.65104624,0.000119,2]
[421191610,1777228239033,-528.68014836,0.000119,2]
[421191612,1777228239043,-549.74696226,0.000119,2]
[421191614,1777228239053,-1400.65853975,0.00011975,2]
[421191616,1777228239064,-854.7,0.00011988,2]
[421191619,1777228239079,-701.91,0.00011988,2]
[421191621,1777228239089,-686.74,0.00011988,2]
[421191623,1777228239099,-150.01,0.00011988,2]
[421191625,1777228239108,-290.02,0.00011988,2]
[421191627,1777228239118,-304.59,0.00011988,2]
[421191628,1777228239127,-852.78,0.00011988,2]
[421191630,1777228239137,-151.0,0.00011993,2]
[421191631,1777228239147,-151.0,0.00011993,2]
[421191633,1777228239156,-151.0,0.00011993,2]
[421191635,1777228239166,-151.0,0.00011993,2]
[421191637,1777228239176,-151.0,0.00011993,2]
[421191639,1777228239187,-151.0,0.00011993,2]
[421191641,1777228239197,-151.0,0.00011993,2]
[421191643,1777228239206,-151.0,0.00011993,2]
[421191645,1777228239217,-151.0,0.00011993,2]
[421191647,1777228239227,-151.0,0.00011993,2]
[421191649,1777228239237,-151.0,0.00011993,2]
[421191651,1777228239248,-242.11606108,0.00011993,2]
[421191653,1777228239258,-297.87696242,0.00011998,2]
[421191654,1777228239267,-250.0,0.00011998,2]
[421191655,1777228239277,-561453.44699499,0.00012,2]
[421191658,1777228239832,-10769.05281106,0.00012,2]
[421191659,1777228239874,-1128.37587025,0.00012,2]
[421191660,1777228239886,-5420.14792206,0.00012,2]
[421191662,1777228239915,-904.1372,0.00012,2]
[421191663,1777228239928,-13705.13872352,0.00012,2]
[421191668,1777228240173,-403.46388559,0.00012,2]
[421191669,1777228240288,-1168160.1371197,0.00012,2]
[421191670,1777228240527,-7997.52238149,0.00012,2]
[421191671,1777228240938,-9324.79362834,0.00012,2]
[421191693,1777228243843,-27367.95079549,0.00012,2]
[421191694,1777228244540,-33851.64737738,0.00012,2]
[421191696,1777228244787,-1521.30804372,0.00012,2]
[421191705,1777228246081,-152.0,0.00010954,7]
[421191706,1777228246092,-152.0,0.00010965,7]
[421191707,1777228246102,-141307.47672741,0.00012,2]
[421191708,1777228246114,-98167.06086379,0.00012,2]
[421191709,1777228246127,-295.76139921,0.00012,2]
[421191710,1777228246140,-7886.93640369,0.00012,2]
[421191711,1777228246173,-152.0,0.00010965,7]
[421191712,1777228246184,-235.93218086,0.00012,2]
[421191713,1777228246226,-166907.93290729,0.00012,2]
[421191714,1777228246291,-2273.64543204,0.00012,2]
[421191715,1777228246302,-961.05676293,0.00012,2]
[421191717,1777228277050,2244.643697,0.00024253,120]
[421191718,1777228284302,15073.778858,0.00024253,120]
[421191719,1777228430284,1122.321848,0.00023457,120]
[421191720,1777228441634,6173.561307,0.00022771,120]
[421191721,1777228819452,561.160924,0.00022771,120]
[421191725,1777229431992,-280.0,8.219e-05,2]
[421191726,1777229432001,-250.0,8.271e-05,2]
[421191727,1777229432011,-250.0,9.023e-05,2]
[421191728,1777229432020,-475.39034168,9.041e-05,2]
[421191729,1777229432031,-275.18620072,9.041e-05,2]
[421191730,1777229432040,-250.0,9.041e-05,2]
[421191731,1777229432049,-372.667373,9.948e-05,2]
[421191732,1777229432059,-1200.0,9.998e-05,2]
[421191733,1777229432069,-150.0,9.999e-05,2]
[421191734,1777229432079,-300.0,9.999e-05,2]
[421191735,1777229432089,-500.0,0.0001,2]
[421191736,1777229432098,-500.0,0.0001,2]
[421191737,1777229432107,-500.0,0.0001,2]
[421191738,1777229432116,-500.0,0.0001,2]
[421191739,1777229432126,-500.0,0.0001,2]
[421191740,1777229432135,-500.0,0.0001,2]
[421191741,1777229432145,-500.0,0.0001,2]
[421191742,1777229432155,-500.0,0.0001,2]
[421191743,1777229432165,-500.0,0.0001,2]
[421191744,1777229432175,-500.0,0.0001,2]
[421191745,1777229432185,-500.0,0.0001,2]
[421191746,1777229432195,-500.0,0.0001,2]
[421191747,1777229432204,-500.0,0.0001,2]
[421191748,1777229432214,-500.0,0.0001,2]
[421191749,1777229432224,-500.0,0.0001,2]
[421191750,1777229432233,-500.0,0.0001,2]
[421191751,1777229432242,-500.0,0.0001,2]
[421191752,1777229432252,-500.0,0.0001,2]
[421191753,1777229432261,-500.0,0.0001,2]
[421191754,1777229432271,-500.0,0.0001,2]
[421191755,1777229432280,-500.0,0.0001,2]
[421191756,1777229432290,-500.0,0.0001,2]
[421191757,1777229432299,-500.0,0.0001,2]
[421191758,1777229432308,-500.0,0.0001,2]
[421191759,1777229432318,-500.0,0.0001,2]
[421191760,1777229432327,-500.0,0.0001,2]
[421191761,1777229432336,-500.0,0.0001,2]
[421191762,1777229432346,-500.0,0.0001,2]
[421191763,1777229432355,-500.0,0.0001,2]